bitfinex-derivatives/quotes_ETHF0:USTF0_20251226
["timestamp","ask_amount","ask_price","bid_price","bid_amount"]
[1766720157824,0.0033231,2966.6,2965.3,0.0042905]
[1766720158023,0.95340134,2966.5,2965.3,0.0042905]
[1766720158226,0.0033231,2966.6,2965.3,0.0042905]
[1766720158427,0.1687,2966.4,2965.3,0.0042905]
[1766720158628,7.801,2966.3,2965.3,0.0042905]
[1766720160625,0.1687,2966.4,2965.3,0.0042905]
[1766720160831,5.6633231,2966.6,2965.3,0.0042905]
[1766720161531,7.8213231,2966.6,2965.3,0.0042905]
[1766720165437,0.0033231,2966.6,2965.3,0.0042905]
[1766720168534,1.12273549,2966.5,2965.3,0.0042905]
[1766720168737,0.1687,2966.5,2965.3,0.0042905]
[1766720168930,40.8,2966.4,2965.3,0.0042905]
[1766720169642,0.1687,2966.5,2965.3,0.0042905]
[1766720169935,0.0033231,2966.6,2965.3,0.0042905]
[1766720173441,1.12223936,2966.5,2965.3,0.0042905]
[1766720173743,0.16873,2965.9,2964.3,0.0050603]
[1766720174041,7.83,2965.8,2964.3,0.0050603]
[1766720174438,0.16873,2965.9,2964.3,0.79976914]
[1766720174439,7.99973,2965.9,2964.3,0.79976914]
[1766720174642,7.99973,2965.9,2964.3,0.80310199]
[1766720177149,0.16873,2965.9,2964.3,0.80310199]
[1766720178434,0.16873,2965.9,2964.3,0.00839315]
[1766720199979,0.16873,2965.9,2964.4,0.79502258]
[1766720200478,0.16873,2965.9,2964.3,0.80341573]
[1766720203079,0.16873,2965.9,2964.6,0.79502258]
[1766720213682,7.776,2966.3,2964.9,0.79502258]
[1766720213877,0.95445763,2966.2,2964.9,0.79502258]
[1766720214078,7.776,2966.3,2964.9,0.79502258]
[1766720214274,0.95465347,2966.2,2964.9,0.79502258]
[1766720214482,0.1687,2966.5,2964.9,0.79502258]
[1766720214773,0.95452259,2966.4,2964.9,0.79502258]
[1766720214974,0.95452259,2966.3,2964.9,0.79502258]
[1766720215178,0.95452259,2966.2,2964.3,0.17721315]
[1766720215378,0.1687,2966.4,2964.8,0.79502258]
[1766720215587,0.95439936,2966.3,2964.8,0.79502258]
[1766720215786,0.95439936,2966.2,2964.8,0.79502258]
[1766720215990,0.1687,2966.4,2964.8,0.79502258]
[1766720216180,0.95389742,2966.3,2964.8,0.79502258]
[1766720216380,0.95389742,2966.2,2964.8,0.79502258]
[1766720216580,0.1687,2966.4,2964.8,0.79502258]
[1766720216775,0.95378559,2966.3,2964.8,0.79502258]
[1766720216987,0.95378559,2966.2,2964.8,0.79502258]
[1766720217287,0.1687,2966.4,2964.8,0.79502258]
[1766720217488,0.95374874,2966.3,2964.8,0.79502258]
[1766720217690,0.95374874,2966.2,2964.8,0.79502258]
[1766720217881,0.1687,2966.4,2964.8,0.79502258]
[1766720218081,0.95381578,2966.3,2964.8,0.79502258]
[1766720218282,0.95381578,2966.2,2964.8,0.79502258]
[1766720218581,0.1687,2966.4,2964.8,0.79502258]
[1766720218782,0.95369516,2966.3,2964.8,0.79502258]
[1766720218980,0.95369516,2966.2,2964.8,0.79502258]
[1766720219184,0.1687,2966.4,2964.8,0.79502258]
[1766720219482,0.95364503,2966.3,2964.8,0.79502258]
[1766720219682,0.95364503,2966.2,2964.8,0.79502258]
[1766720219883,0.1687,2966.4,2964.8,0.79502258]
[1766720220082,0.95364493,2966.3,2964.8,0.79502258]
[1766720220288,0.79502258,2966.0,2964.4,0.79502258]
[1766720220592,7.815,2965.9,2964.4,0.79502258]
[1766720220797,7.815,2965.9,2964.3,0.00839315]
[1766720220798,7.815,2965.9,2964.7,0.79502258]
[1766720222390,7.815,2965.9,2964.4,0.79502258]
[1766720226193,0.79502258,2965.0,2962.9,0.1689]
[1766720226395,8.60502258,2965.0,2963.7,0.79502258]
[1766720226692,7.81,2965.0,2963.7,0.79502258]
[1766720227197,0.0050603,2964.6,2964.1,0.0050603]
[1766720233697,0.0050603,2964.6,2963.7,0.7983775]
[1766720234197,0.0050603,2964.6,2963.7,0.00335492]
[1766720235692,0.0050603,2964.6,2963.9,0.0050603]
[1766720235898,0.0050603,2964.6,2963.7,0.00335492]
[1766720236788,0.0050603,2964.6,2963.9,0.0050603]
[1766720237901,0.0050603,2964.6,2963.7,0.00335492]
[1766720238600,0.79502258,2964.5,2962.7,0.79502258]
[1766720238802,0.79502258,2964.2,2962.7,0.79502258]
[1766720239002,0.79502258,2964.2,2963.2,0.0050603]
[1766720239398,0.79502258,2964.2,2962.7,0.79502258]
[1766720239602,0.79502258,2963.9,2962.7,0.0035232]
[1766720240408,0.79502258,2963.9,2963.0,0.00337354]
[1766720242415,7.908,2963.8,2963.0,0.00337354]
[1766720246816,7.908,2963.8,2962.7,0.0035232]
[1766720246817,0.79502258,2963.7,2962.7,2.32e-05]
[1766720247007,0.79502258,2963.4,2961.9,0.79502258]
[1766720247202,7.945,2963.3,2961.9,0.79502258]
[1766720247803,0.0050603,2962.9,2961.9,0.79502258]
[1766720248013,0.0050603,2962.9,2961.9,0.79937743]
[1766720248305,0.0050603,2962.9,2962.2,0.79502258]
[1766720250000,7.942,2963.4,2962.5,0.79502258]
[1766720250208,7.942,2963.4,2962.2,0.79502258]
[1766720251110,0.0050603,2963.1,2962.5,0.0050603]
[1766720260322,0.1739503,2963.1,2961.9,0.00435485]
[1766720260724,8.1889503,2963.1,2961.9,0.00435485]
[1766720273736,0.1689,2962.9,2961.0,0.79629289]
[1766720273936,0.16891,2962.8,2960.7,1.24202446]
[1766720274135,0.16892,2962.6,2960.7,1.24202446]
[1766720274733,0.16892,2962.6,2960.7,1.24478852]
[1766720287648,0.16892,2962.6,2961.0,0.79629289]
[1766720287843,0.0050603,2963.1,2961.4,0.79629289]
[1766720288048,0.0050603,2963.1,2961.8,0.79629289]
[1766720288250,0.0050603,2963.1,2961.8,5.25129289]
[1766720289048,0.16885,2963.9,2962.2,0.79629289]
[1766720290156,0.0050603,2963.3,2962.8,0.0050603]
[1766720290347,0.0050603,2963.3,2962.8,0.00764674]
[1766720290945,0.16885,2963.9,2962.8,0.00764674]
[1766720291655,0.00427098,2964.2,2962.8,0.00764674]
[1766720292054,0.0050603,2963.8,2962.9,0.79629289]
[1766720295960,0.00427098,2964.2,2962.9,0.79629289]
[1766720297261,0.0050603,2963.8,2962.9,0.79629289]
[1766720298355,0.00427098,2964.2,2962.9,0.79629289]
[1766720298556,0.00427098,2964.2,2963.3,0.79629289]
[1766720299256,0.0050603,2964.0,2963.3,0.79629289]
[1766720299452,0.00427098,2964.2,2963.3,0.79629289]
[1766720299762,0.00427098,2964.2,2962.9,0.79629289]
[1766720301462,0.00337354,2963.8,2962.9,0.79629289]
[1766720302266,0.00427098,2964.2,2962.9,0.79629289]
[1766720304357,0.00427098,2964.2,2962.8,0.00764674]
[1766720305367,0.17310098,2964.2,2962.8,0.00764674]
[1766720305567,0.16883,2964.1,2962.8,0.00764674]
[1766720305971,0.16884,2963.9,2962.8,0.00764674]
[1766720307168,40.96884,2963.9,2962.8,0.00764674]
[1766720309165,0.16885,2963.8,2962.8,0.00764674]
[1766720309367,0.0050603,2963.6,2961.9,0.79629289]
[1766720310271,0.1739203,2963.6,2962.5,0.0050603]
[1766720310466,0.16887,2963.4,2962.5,0.0050603]
[1766720310668,0.0050603,2963.6,2961.9,0.00283531]
[1766720310872,0.16888,2963.3,2961.9,0.00283531]
[1766720311666,0.16888,2963.3,2962.3,0.0050603]
[1766720311874,0.16888,2963.2,2961.9,0.00283531]
[1766720312372,0.16889,2963.1,2961.9,0.00283531]
[1766720312773,0.1689,2963.0,2962.2,0.0050603]
[1766720312966,0.0050603,2963.6,2961.9,0.7991282]
[1766720313165,0.1739203,2963.6,2961.9,0.7991282]
[1766720313866,0.1739203,2963.6,2962.5,0.0050603]
[1766720314568,0.0050603,2963.6,2962.5,0.0050603]
[1766720320965,3.8790603,2963.6,2962.5,0.0050603]
[1766720321977,4.0479203,2963.6,2962.5,0.0050603]
[1766720322276,0.79627827,2963.4,2962.5,0.0050603]
[1766720322471,4.0479203,2963.6,2962.5,0.0050603]
[1766720326284,0.1739203,2963.6,2962.7,0.79627827]
[1766720326486,8.2169203,2963.6,2962.7,0.79627827]
[1766720326671,0.0050603,2963.6,2962.7,0.79627827]
[1766720328385,0.0050603,2963.6,2962.5,0.0050603]
[1766720328678,0.0050603,2963.6,2962.7,0.79627827]
[1766720334671,0.0050603,2963.6,2962.5,0.0050603]
[1766720334672,0.0050603,2963.6,2963.0,0.79627827]
[1766720335180,8.1,2963.9,2963.0,0.79627827]
[1766720335777,0.16884,2964.0,2963.0,0.79627827]
[1766720335973,8.26884,2964.0,2963.0,0.79627827]
[1766720336281,0.0050603,2963.8,2963.0,0.79627827]
[1766720339385,0.0050603,2963.8,2962.5,0.0050603]
[1766720339586,0.0050603,2963.8,2963.0,0.79627827]
[1766720342286,0.0050603,2963.8,2962.7,0.79627827]
[1766720344487,0.0050603,2963.8,2962.5,0.0050603]
[1766720346793,0.96513827,2963.6,2962.5,0.0050603]
[1766720347086,0.16886,2963.6,2962.5,0.0050603]
[1766720347288,40.8,2963.5,2962.5,0.0050603]
[1766720349095,0.16886,2963.6,2962.5,0.0050603]
[1766720349491,40.96886,2963.6,2962.5,0.0050603]
[1766720350185,0.79627827,2963.4,2962.5,0.0050603]
[1766720351091,0.16886,2963.6,2962.5,0.0050603]
[1766720353801,0.79627827,2963.2,2962.5,0.0050603]
[1766720353988,8.106,2963.2,2962.5,0.0050603]
[1766720354495,8.106,2963.2,2961.9,0.00283531]
[1766720355590,8.106,2963.2,2962.3,0.0050603]
[1766720356389,0.16888,2963.3,2962.4,0.79627827]
[1766720356589,5.0840603,2963.8,2962.4,0.79627827]
[1766720356793,0.95872366,2963.7,2962.3,0.0050603]
[1766720356994,0.0050603,2963.8,2962.6,0.79627827]
[1766720357895,0.0050603,2963.8,2963.2,0.79627827]
[1766720358199,0.0050603,2963.8,2962.3,0.0050603]
[1766720358200,0.79627827,2964.1,2962.8,0.79627827]
[1766720358399,0.79627827,2964.1,2962.5,0.79627827]
[1766720358995,0.96510827,2964.1,2962.3,0.80133857]
[1766720359298,0.0050603,2963.6,2962.3,0.80133857]
[1766720364100,0.0050603,2963.6,2962.3,0.0050603]
[1766720368405,0.79627827,2963.5,2962.3,0.0050603]
[1766720369407,0.1739203,2963.6,2962.3,0.0050603]
[1766720371203,0.1739203,2963.6,2962.4,0.79627827]
[1766720371406,0.1739203,2963.6,2962.7,0.79627827]
[1766720372108,0.0050603,2963.6,2962.7,0.79627827]
[1766720373606,0.0050603,2963.6,2962.3,0.0050603]
[1766720373912,0.0050603,2963.6,2962.4,0.79627827]
[1766720374106,0.0050603,2963.6,2962.3,0.0050603]
[1766720374808,0.1739203,2963.6,2962.3,0.0050603]
[1766720375109,0.79627827,2963.4,2962.3,0.0050603]
[1766720376313,0.1739203,2963.6,2962.3,0.0050603]
[1766720382919,0.1739203,2963.6,2962.3,0.80133857]
[1766720384017,0.1739203,2963.6,2962.3,0.0050603]
[1766720392126,8.154,2963.5,2962.3,0.0050603]
[1766720392816,8.32287,2963.5,2962.3,0.0050603]
[1766720395122,0.16887,2963.4,2962.3,0.0050603]
[1766720397128,0.16888,2963.3,2962.3,0.0050603]
[1766720397326,0.16888,2963.3,2961.9,0.00283531]
[1766720397520,0.9587026,2963.2,2961.9,0.00283531]
[1766720397722,0.16888,2963.3,2961.9,0.00283531]
[1766720397926,0.95869935,2963.2,2961.9,0.00283531]
[1766720398226,0.16888,2963.3,2961.9,0.00283531]
[1766720398426,0.16888,2963.3,2962.3,0.0050603]
[1766720398927,0.16888,2963.3,2961.9,0.00283531]
[1766720399132,0.7961505,2963.1,2961.9,0.00283531]
[1766720399733,0.9650305,2963.3,2961.9,0.00283531]
[1766720400031,0.9650305,2963.3,2962.3,0.0050603]
[1766720401841,8.205,2963.2,2962.3,0.0050603]
[1766720402030,0.0050603,2963.6,2962.3,0.0050603]
[1766720402232,8.207,2963.5,2962.3,0.0050603]
[1766720402438,0.0050603,2963.6,2962.3,0.0050603]
[1766720405538,0.7961505,2963.4,2962.3,0.0050603]
[1766720406434,0.9650305,2963.4,2962.3,0.0050603]
[1766720417145,0.16888,2963.3,2962.3,0.0050603]
[1766720417346,1.12666275,2963.3,2962.3,0.0050603]
[1766720417536,0.16888,2963.3,2962.3,0.0050603]
[1766720419850,0.0050603,2963.6,2962.3,0.0050603]
[1766720425354,0.8012108,2963.6,2962.3,0.0050603]
[1766720425859,0.8012108,2963.6,2961.9,0.00283531]
[1766720425860,0.7961505,2963.2,2961.9,0.00283531]
[1766720434854,0.9650405,2963.2,2961.9,0.00283531]
[1766720435264,0.7961505,2962.8,2960.6,0.16903]
[1766720435467,0.16891,2962.7,2960.6,0.16903]
[1766720436358,0.16891,2962.7,2961.0,7.98436365]
[1766720437363,0.7961505,2962.4,2961.0,7.98436365]
[1766720437557,0.0050603,2962.0,2961.0,7.98436365]
[1766720437760,0.00852869,2962.0,2961.0,7.98436365]
[1766720437960,0.00852869,2962.0,2961.0,0.00296994]
[1766720464875,0.79689345,2961.9,2961.0,0.00296994]
[1766720465076,0.00852869,2962.0,2961.0,0.00296994]
[1766720478185,0.00852869,2962.0,2961.1,0.79689345]
[1766720481692,0.00852869,2962.0,2961.0,0.00296994]
[1766720501120,0.80542214,2962.0,2961.0,0.00296994]
[1766720504120,0.00852869,2962.0,2961.0,0.00296994]
[1766720506830,0.79689345,2961.5,2960.4,4.447]
[1766720507032,0.79689345,2961.8,2960.4,4.447]
[1766720507728,0.79689345,2961.8,2960.4,4.4494986]
[1766720508031,0.00852869,2962.0,2960.4,4.4494986]
[1766720510033,0.00852869,2962.0,2960.4,10.77143055]
[1766720515444,0.00852869,2962.0,2960.5,3.89927131]
[1766720516646,0.1689,2962.9,2960.7,0.79715879]
[1766720516949,0.1689,2962.9,2960.8,3.92238231]
[1766720517846,0.0050603,2962.1,2961.6,0.0050603]
[1766720523948,0.17298474,2962.9,2961.6,0.0050603]
[1766720524943,0.0050603,2962.5,2961.6,0.0050603]
[1766720525753,0.0050603,2962.5,2961.1,3.536]
[1766720526656,0.0050603,2962.5,2961.5,0.0050603]
[1766720537356,0.1050603,2962.5,2961.5,0.0050603]
[1766720567990,0.1050603,2962.5,2961.5,0.80154658]
[1766720576692,0.1050603,2962.5,2961.8,0.79648628]
[1766720576888,0.00408474,2962.9,2961.5,0.1740403]
[1766720576889,0.00408474,2962.9,2962.1,0.79648628]
[1766720577090,0.16886,2963.6,2962.0,0.79648628]
[1766720577288,0.79648628,2963.4,2962.0,0.79648628]
[1766720577990,0.0050603,2963.0,2961.9,4.495]
[1766720578207,0.0088555,2963.0,2961.9,4.495]
[1766720580597,0.0088555,2963.0,2962.0,0.79648628]
[1766720582494,0.0088555,2963.0,2962.3,0.79648628]
[1766720582701,0.0088555,2963.0,2961.9,4.495]
[1766720582702,0.08656052,2964.0,2962.6,0.79648628]
[1766720582900,0.96142693,2963.9,2962.6,0.79648628]
[1766720583101,0.08656052,2964.0,2962.6,0.79648628]
[1766720583400,0.9607556,2963.9,2962.6,0.79648628]
[1766720583601,0.0050603,2963.5,2963.0,0.0050603]
[1766720585299,0.00407585,2963.9,2963.0,0.0050603]
[1766720586296,0.0050603,2963.7,2963.0,0.0050603]
[1766720587703,0.00407585,2963.9,2963.0,0.0050603]
[1766720587903,0.96527628,2965.0,2963.5,0.79648628]
[1766720588299,40.8,2965.0,2963.2,0.79648628]
[1766720588500,41.59648628,2965.0,2963.5,0.79648628]
[1766720588702,0.79648628,2965.0,2963.5,0.79648628]
[1766720588899,0.0050603,2964.5,2963.5,0.79648628]
[1766720589996,0.0050603,2964.5,2963.8,0.79648628]
[1766720590708,0.0050603,2964.5,2963.2,0.96536628]
[1766720593605,0.0050603,2964.5,2963.5,0.79648628]
[1766720594102,0.0050603,2964.5,2963.8,0.79648628]
[1766720597807,0.0050603,2964.5,2963.2,0.16888]
[1766720597998,0.0050603,2964.5,2963.4,0.79648628]
[1766720601907,0.0050603,2964.5,2963.2,0.16888]
[1766720602106,0.0050603,2964.5,2963.4,0.79648628]
[1766720607313,0.0050603,2964.5,2963.3,4.492]
[1766720607508,0.79648628,2964.0,2963.0,0.0050603]
[1766720608610,0.79648628,2963.7,2963.0,0.0050603]
[1766720608811,0.79648628,2963.7,2962.6,0.00381888]
[1766720609523,0.79648628,2963.5,2962.6,0.00381888]
[1766720609916,0.79648628,2963.5,2962.8,0.0050603]
[1766720610619,0.79648628,2963.5,2962.6,0.00381888]
[1766720611620,0.79648628,2963.5,2962.8,0.0050603]
[1766720611819,0.79648628,2963.5,2962.6,0.00381888]
[1766720613023,0.79648628,2963.5,2962.8,0.0050603]
[1766720616423,0.79648628,2963.2,2962.6,0.00381888]
[1766720616621,0.79648628,2963.2,2961.9,5.63481565]
[1766720617315,0.0050603,2962.8,2962.3,0.0050603]
[1766720617524,0.00770884,2962.8,2962.3,0.00915514]
[1766720620725,0.79648628,2963.5,2962.3,0.00915514]
[1766720621827,0.0050603,2963.2,2962.3,0.00915514]
[1766720622922,0.0050603,2963.2,2962.5,0.79648628]
[1766720623429,0.0050603,2963.2,2962.3,0.00915514]
[1766720638932,0.16882,2964.4,2962.4,3.9182439]
[1766720639133,0.9624016,2964.3,2962.4,3.9182439]
[1766720639430,0.16882,2964.4,2962.4,3.9182439]
[1766720639635,0.96218174,2964.3,2962.4,3.9182439]
[1766720639833,0.0050603,2963.7,2962.4,3.9182439]
[1766720640741,0.0050603,2963.7,2962.3,0.17808514]
[1766720641937,0.0050603,2963.7,2962.4,4.504]
[1766720644435,0.0029046,2964.3,2962.5,0.16892]
[1766720645540,0.0050603,2963.7,2962.5,0.16892]
[1766720647343,0.0029046,2964.3,2962.6,3.82065519]
[1766720648141,0.0050603,2963.7,2962.6,3.82065519]
[1766720648443,0.0029046,2964.3,2962.6,3.82065519]
[1766720649442,0.00337354,2963.7,2962.6,3.82065519]
[1766720649641,0.0029046,2964.3,2962.6,3.82065519]
[1766720659948,0.0029046,2964.3,2962.9,0.1689]
[1766720660250,0.0029046,2964.3,2963.0,5.32725699]
[1766720664754,0.0029046,2964.3,2963.0,4.531]
[1766720666656,0.0029046,2964.3,2962.9,1.39760421]
[1766720666858,0.0029046,2964.3,2963.1,4.53]
[1766720671265,0.0029046,2964.3,2962.9,1.39760421]
[1766720671558,0.0029046,2964.3,2963.0,4.53]
[1766720692089,0.0029046,2964.3,2963.1,0.79565823]
[1766720696687,0.0029046,2964.3,2963.0,4.53]
[1766720696893,0.0029046,2964.3,2963.0,5.32565823]
[1766720711099,0.16873,2966.0,2963.6,0.16886]
[1766720711295,0.79565823,2965.3,2964.5,0.0050603]
[1766720711500,0.79565823,2964.9,2963.7,4.553]
[1766720711991,0.7984045,2964.9,2963.7,4.55683447]
[1766720712195,0.00274627,2964.9,2963.7,4.55683447]
[1766720712398,0.0050603,2964.6,2964.0,0.0050603]
[1766720713001,0.00274627,2964.9,2964.0,0.0050603]
[1766720715201,0.7984045,2964.9,2964.0,0.0050603]
[1766720718006,0.16873,2966.0,2964.0,0.0050603]
[1766720718212,0.16873,2966.0,2964.9,0.79565823]
[1766720718509,0.16873,2966.0,2964.6,5.34765823]
[1766720718809,0.79565823,2965.6,2964.0,0.0050603]
[1766720719007,0.79565823,2965.6,2964.1,4.552]
[1766720719207,0.79824067,2965.6,2964.1,4.552]
[1766720719803,0.79824067,2965.6,2964.2,4.552]
[1766720720201,0.00258244,2965.6,2964.3,0.79565823]
[1766720720913,0.79565823,2965.5,2964.2,4.552]
[1766720721117,0.00258244,2965.6,2964.2,4.552]
[1766720721612,0.79824067,2965.6,2964.2,4.552]
[1766720722108,0.79824067,2965.6,2964.1,0.79565823]
[1766720722321,0.79824067,2965.6,2964.3,4.552]
[1766720723514,0.00258244,2965.6,2964.4,0.79565823]
[1766720724117,0.00258244,2965.6,2964.5,0.79565823]
[1766720725414,0.00258244,2965.6,2964.5,1.99670333]
[1766720732717,0.96435823,2966.5,2965.1,0.79565823]
[1766720732915,0.96435823,2966.5,2965.5,0.0050603]
[1766720733118,0.1687,2966.5,2965.5,0.0050603]
[1766720733312,0.96435823,2966.5,2965.5,0.0050603]
[1766720733711,0.96846955,2966.5,2965.5,0.0050603]
[1766720735723,0.00411132,2966.5,2965.5,0.0050603]
[1766720737430,0.00411132,2966.5,2965.6,0.79565823]
[1766720738320,0.00411132,2966.5,2965.9,0.79565823]
[1766720738525,0.00411132,2966.5,2965.9,0.79803611]
[1766720739230,0.19407366,2967.3,2966.2,0.79565823]
[1766720739547,0.19407366,2967.3,2965.9,0.00237788]
[1766720739730,0.19407366,2967.3,2966.2,0.79565823]
[1766720740328,0.19820955,2967.3,2966.2,0.79565823]
[1766720740832,0.79565823,2966.9,2965.9,0.00237788]
[1766720741139,0.16867,2967.0,2965.9,0.00237788]
[1766720741432,0.79565823,2966.2,2965.5,0.0050603]
[1766720741634,0.79565823,2965.8,2964.4,0.79565823]
[1766720741832,0.79565823,2966.1,2964.7,0.79565823]
[1766720742028,7.699,2966.6,2964.7,0.79565823]
[1766720742232,7.699,2966.6,2965.0,0.79565823]
[1766720742537,0.0050603,2966.1,2965.5,0.0050603]
[1766720749843,40.8,2966.8,2965.5,0.0050603]
[1766720750139,0.96432823,2966.9,2965.5,0.0050603]
[1766720750336,8.50865823,2967.2,2965.7,0.79565823]
[1766720750537,40.8,2967.1,2965.7,0.79565823]
[1766720751037,0.79565823,2966.9,2965.5,0.0050603]
[1766720751239,0.79565823,2966.6,2965.5,0.0050603]
[1766720752041,0.79565823,2966.8,2965.5,0.0050603]
[1766720754044,0.16867,2967.0,2965.5,0.0050603]
[1766720754441,41.59459315,2967.1,2965.5,0.0050603]
[1766720754442,0.16867,2966.9,2965.5,0.0050603]
[1766720754941,0.79459315,2966.7,2965.0,0.00433612]
[1766720755343,0.96327315,2966.7,2965.0,0.00433612]
[1766720755942,0.0050603,2966.1,2965.6,0.0050603]
[1766720756244,0.0050603,2966.1,2965.0,0.00433612]
[1766720757243,0.0050603,2966.1,2965.3,0.0050603]
[1766720760743,0.0050603,2966.1,2965.0,0.00433612]
[1766720761852,0.0050603,2966.1,2965.3,0.0050603]
[1766720773964,0.0050603,2966.1,2965.3,0.79965345]
[1766720774166,0.16866,2967.1,2965.3,0.79965345]
[1766720774367,0.94232194,2967.0,2965.3,0.0050603]
[1766720774573,0.94232194,2966.9,2965.3,0.0050603]
[1766720774867,0.94232194,2966.8,2965.3,0.0050603]
[1766720775075,0.0050603,2966.3,2965.3,0.0050603]
[1766720776456,40.8050603,2966.3,2965.3,0.0050603]
[1766720776866,0.0050603,2966.3,2965.3,0.0050603]
[1766720780175,0.16867,2967.0,2965.3,0.0050603]
[1766720781173,0.0050603,2966.4,2965.3,0.0050603]
[1766720785781,0.1658,2966.3,2965.3,0.0050603]
[1766720786176,0.19820955,2967.3,2965.9,0.79459315]
[1766720786581,0.19820955,2967.3,2965.4,0.16875]
[1766720787081,0.19820955,2967.3,2965.6,0.79459315]
[1766720789277,0.19820955,2967.3,2965.6,0.16875]
[1766720789484,0.19820955,2967.3,2965.6,0.96334315]
[1766720790273,0.19820955,2967.3,2966.0,0.79459315]
[1766720791183,45.377,2968.2,2966.4,0.79459315]
[1766720791480,0.94164673,2968.1,2966.0,0.79459315]
[1766720791677,45.377,2968.2,2966.0,0.79459315]
[1766720791983,0.94128108,2968.1,2966.0,0.79459315]
[1766720792187,0.00427199,2968.1,2966.0,0.79459315]
[1766720792579,0.0050603,2967.3,2966.8,0.0050603]
[1766720793673,0.0050603,2967.3,2965.8,4.33973]
[1766720794180,0.0050603,2967.3,2965.9,0.16873]
[1766720794375,0.0050603,2967.3,2966.1,0.79459315]
[1766720794573,0.00427199,2968.1,2966.5,0.79459315]
[1766720794774,0.00427199,2968.1,2966.1,0.79459315]
[1766720794986,0.00427199,2968.1,2966.1,0.96331315]
[1766720795682,0.00427199,2968.1,2966.8,0.0050603]
[1766720797690,0.00427199,2968.1,2967.1,0.79459315]
[1766720797882,0.00427199,2968.1,2967.1,0.79771285]
[1766720798083,0.00427199,2968.1,2967.1,0.0031197]
[1766720799191,40.8,2968.9,2967.1,0.0031197]
[1766720800192,40.80384199,2968.9,2967.1,0.0031197]
[1766720800582,0.00384199,2968.9,2967.1,0.0031197]
[1766720801379,0.00384199,2968.9,2967.3,0.79459315]
[1766720802885,0.00384199,2968.9,2967.7,0.79459315]
[1766720803187,0.00384199,2968.9,2967.7,2.01746371]
[1766720803380,0.00384199,2968.9,2967.7,0.79459315]
[1766720803584,0.00384199,2968.9,2967.1,5.33571285]
[1766720803784,0.00384199,2968.9,2967.1,0.0031197]
[1766720804281,0.17240199,2968.9,2967.1,0.0031197]
[1766720812597,0.00384199,2968.9,2967.1,0.0031197]
[1766720814688,0.00384199,2968.9,2967.3,0.79459315]
[1766720815093,0.00384199,2968.9,2967.4,3.69181915]
[1766720815292,0.00384199,2968.9,2967.5,4.536]
[1766720815691,0.00384199,2968.9,2967.2,0.16865]
[1766720815892,0.79347478,2968.8,2967.3,5.32947478]
[1766720816600,0.79347478,2968.8,2967.3,0.79347478]
[1766720816801,0.79347478,2968.8,2967.3,5.32947478]
[1766720818587,0.00384199,2968.9,2967.3,5.32947478]
[1766720818792,0.79731677,2968.9,2967.3,5.32947478]
[1766720818997,0.79731677,2968.9,2967.2,0.16865]
[1766720819297,0.79347478,2968.6,2967.3,0.79347478]
[1766720819694,0.79347478,2968.6,2967.1,0.79659448]
[1766720819894,0.79347478,2968.6,2967.1,0.0031197]
[1766720820400,0.79347478,2968.6,2967.3,0.79347478]
[1766720820601,0.79347478,2968.6,2967.1,0.0031197]
[1766720820919,0.79347478,2968.6,2967.3,0.79347478]
[1766720821495,0.96587677,2968.9,2967.3,0.79347478]
[1766720822000,0.79347478,2968.6,2967.3,0.79347478]
[1766720822392,0.17240199,2968.9,2967.1,0.0031197]
[1766720822393,0.79347478,2967.7,2967.1,0.0031197]
[1766720822601,0.79347478,2967.7,2966.3,0.79347478]
[1766720822807,0.79347478,2967.4,2966.0,0.79347478]
[1766720823504,0.79347478,2967.4,2965.7,0.79347478]
[1766720823703,0.79347478,2967.4,2966.0,0.00364864]
[1766720823904,0.0050603,2967.0,2966.4,0.0050603]
[1766720824301,0.0050603,2967.0,2966.0,0.00364864]
[1766720825302,0.0050603,2967.0,2966.2,0.0050603]
[1766720825895,0.0050603,2967.0,2966.0,0.00364864]
[1766720826101,0.0050603,2967.0,2964.9,1.22794399]
[1766720826300,0.0050603,2967.0,2964.9,2.59094399]
[1766720826501,0.0050603,2967.0,2964.9,1.22794399]
[1766720826704,0.2753224,2967.0,2964.9,1.22794399]
[1766720826893,0.16868,2966.9,2965.7,0.0050603]
[1766720827099,0.16868,2966.9,2965.7,0.0038381]
[1766720828000,0.16868,2966.9,2966.0,0.0050603]
[1766720828697,0.0050603,2967.0,2966.0,0.0050603]
[1766720830508,7.762,2968.1,2966.0,0.0050603]
[1766720830707,7.762,2968.1,2966.0,1.14883141]
[1766720831205,7.762,2968.1,2966.0,0.0050603]
[1766720831606,0.0050603,2967.3,2966.0,0.0050603]
[1766720834211,0.0050603,2967.3,2966.0,1.14883141]
[1766720836212,0.16861,2968.0,2966.0,2.53824709]
[1766720836418,0.16858,2968.6,2966.1,3.99402564]
[1766720837218,0.0050603,2967.6,2966.1,3.99402564]
[1766720837623,0.0050603,2967.6,2966.1,3.82531564]
[1766720838424,0.0050603,2967.6,2966.3,0.16871]
[1766720838920,0.16858,2968.6,2966.5,1.14377111]
[1766720839318,0.16858,2968.6,2966.5,1.31246111]
[1766720839529,0.16858,2968.6,2966.6,2.672]
[1766720839921,0.0050603,2967.9,2966.5,5.84746111]
[1766720841726,0.0050603,2967.9,2966.5,1.31246111]
[1766720841925,0.0050603,2967.9,2966.0,2.36952709]
[1766720842122,0.0050603,2967.9,2966.1,2.612]
[1766720842327,0.0050603,2967.9,2966.1,6.39240466]
[1766720844320,0.0050603,2967.9,2966.1,6.56111466]
[1766720844824,0.0050603,2967.9,2966.2,0.16871]
[1766720845025,0.0050603,2967.9,2966.3,0.16871]
[1766720845831,0.0050603,2967.9,2966.4,4.535]
[1766720848734,0.0050603,2967.9,2966.4,4.7037]
[1766720851842,0.0050603,2967.9,2966.4,0.1687]
[1766720852044,0.0050603,2967.9,2966.5,4.535]
[1766720854643,0.0050603,2967.9,2966.4,0.1687]
[1766720854839,0.0050603,2967.9,2966.4,4.7037]
[1766720855444,0.0050603,2967.9,2966.5,4.535]
[1766720857143,0.0050603,2967.9,2966.4,0.1687]
[1766720857342,0.0050603,2967.9,2966.5,4.535]
[1766720860843,0.0050603,2967.9,2966.0,1.22575598]
[1766720861149,0.0050603,2967.9,2966.1,4.534]
[1766720861346,0.0050603,2967.9,2966.0,1.22575598]
[1766720861544,0.0050603,2967.9,2966.1,4.534]
[1766720862540,40.8,2967.8,2966.1,4.534]
[1766720862945,40.8,2967.8,2966.0,1.22575598]
[1766720863146,1.11477613,2967.7,2966.0,0.0050603]
[1766720863361,0.94614613,2967.6,2966.0,0.0050603]
[1766720863744,1.11477613,2967.6,2966.0,0.0050603]
[1766720863953,0.94614613,2967.5,2966.0,0.0050603]
[1766720864149,0.16863,2967.6,2966.0,0.0050603]
[1766720864356,0.94613528,2967.5,2966.0,0.0050603]
[1766720864552,0.16863,2967.6,2966.0,0.0050603]